[Event "Early-Titled-Tuesday-Blitz-January-23-2024"]
[Site "Chess.com"]
[Date "2024.01.23"]
[Round "4"]
[White "Bushonica"]
[Black "AsselLesbekova"]
[Result "0-1"]
[WhiteElo "1811"]
[BlackElo "2288"]
[TimeControl "180+1"]
[EndTime "8:33:18 PST"]
[Termination "AsselLesbekova won by resignation"]

1. e4 {[%clk 0:03:00.9]} 1... e5 {[%clk 0:03:00.1]} 2. Nf3 {[%clk 0:02:58.3]}
2... Nf6 {[%clk 0:02:59.9]} 3. Bc4 {[%clk 0:02:54.3]} 3... Nxe4 {[%clk
0:02:58.9]} 4. O-O {[%clk 0:02:53]} 4... d5 {[%clk 0:02:56.4]} 5. Bb3 {[%clk
0:02:48.7]} 5... Nc6 {[%clk 0:02:50.5]} 6. d3 {[%clk 0:02:45.2]} 6... Nc5 {[%clk
0:02:48.8]} 7. Re1 {[%clk 0:02:31.6]} 7... Bg4 {[%clk 0:02:36.3]} 8. Nbd2 {[%clk
0:02:29.3]} 8... Nxb3 {[%clk 0:02:33.5]} 9. axb3 {[%clk 0:02:28.6]} 9... Bd6
{[%clk 0:02:32.6]} 10. c3 {[%clk 0:02:26.5]} 10... O-O {[%clk 0:02:31.2]} 11. d4
{[%clk 0:02:06]} 11... e4 {[%clk 0:02:29.3]} 0-1

[Event "Early-Titled-Tuesday-Blitz-January-23-2024"]
[Site "Chess.com"]
[Date "2024.01.23"]
[Round "4"]
[White "nindjaxx8"]
[Black "Sam_ChessMood"]
[Result "0-1"]
[WhiteElo "2593"]
[BlackElo "2908"]
[TimeControl "180+1"]
[EndTime "8:33:47 PST"]
[Termination "Sam_ChessMood won by resignation"]

1. d4 {[%clk 0:03:00.5]} 1... Nf6 {[%clk 0:02:59.1]} 2. c4 {[%clk 0:03:01.1]}
2... e6 {[%clk 0:02:59.3]} 3. Nc3 {[%clk 0:02:59.4]} 3... Bb4 {[%clk 0:02:59]}
4. Qc2 {[%clk 0:03:00.1]} 4... O-O {[%clk 0:02:56.5]} 5. a3 {[%clk 0:03:00.7]}
5... Bxc3+ {[%clk 0:02:56.1]} 6. Qxc3 {[%clk 0:03:01.6]} 6... d5 {[%clk
0:02:56.2]} 7. Bg5 {[%clk 0:03:00.9]} 7... h6 {[%clk 0:02:56.1]} 8. Bh4 {[%clk
0:03:00.8]} 8... c5 {[%clk 0:02:55.5]} 9. e3 {[%clk 0:02:59.6]} 9... cxd4 {[%clk
0:02:49.7]} 10. exd4 {[%clk 0:02:58.1]} 10... Nc6 {[%clk 0:02:47.6]} 11. Nf3
{[%clk 0:02:56.4]} 11... g5 {[%clk 0:02:41.9]} 12. Bg3 {[%clk 0:02:54.1]} 12...
Ne4 {[%clk 0:02:42.1]} 13. Qc2 {[%clk 0:02:53.1]} 13... Qa5+ {[%clk 0:02:41.7]}
14. Kd1 {[%clk 0:02:41.1]} 14... g4 {[%clk 0:02:37.3]} 15. Ne5 {[%clk
0:02:24.3]} 15... Nxd4 {[%clk 0:02:37.2]} 16. Qd3 {[%clk 0:02:20]} 16... Qa4+
{[%clk 0:02:35.5]} 17. b3 {[%clk 0:02:11.1]} 17... Nxb3 {[%clk 0:02:33.2]} 18.
Ra2 {[%clk 0:01:52.2]} 18... Nbc5+ {[%clk 0:02:28.9]} 19. Qc2 {[%clk 0:01:50.8]}
19... Nc3+ {[%clk 0:02:29]} 0-1

[Event "Early-Titled-Tuesday-Blitz-January-23-2024"]
[Site "Chess.com"]
[Date "2024.01.23"]
[Round "4"]
[White "HajiyevKanan"]
[Black "gmcorrales"]
[Result "0-1"]
[WhiteElo "2604"]
[BlackElo "2931"]
[TimeControl "180+1"]
[EndTime "8:34:05 PST"]
[Termination "gmcorrales won by resignation"]

1. d4 {[%clk 0:03:00.9]} 1... Nf6 {[%clk 0:02:59.6]} 2. Nf3 {[%clk 0:02:59.8]}
2... e6 {[%clk 0:03:00]} 3. c4 {[%clk 0:02:59.3]} 3... d5 {[%clk 0:02:57.9]} 4.
cxd5 {[%clk 0:02:59.2]} 4... exd5 {[%clk 0:02:57.9]} 5. Nc3 {[%clk 0:03:00.1]}
5... Bb4 {[%clk 0:02:57.9]} 6. Qc2 {[%clk 0:02:58.9]} 6... Be6 {[%clk
0:02:57.9]} 7. Ng5 {[%clk 0:02:57]} 7... Nbd7 {[%clk 0:02:57.9]} 8. Nxe6 {[%clk
0:02:56]} 8... fxe6 {[%clk 0:02:58.8]} 9. Bg5 {[%clk 0:02:55.8]} 9... c5 {[%clk
0:02:58.4]} 10. e3 {[%clk 0:02:52.2]} 10... Rc8 {[%clk 0:02:57.1]} 11. Bd3
{[%clk 0:02:45.5]} 11... cxd4 {[%clk 0:02:56.8]} 12. exd4 {[%clk 0:02:40.5]}
12... Qb6 {[%clk 0:02:54.9]} 13. O-O {[%clk 0:02:39.8]} 13... Qxd4 {[%clk
0:02:54.7]} 14. Rfe1 {[%clk 0:02:37.1]} 14... O-O {[%clk 0:02:52.4]} 15. Rxe6
{[%clk 0:02:30.1]} 15... Bxc3 {[%clk 0:02:51.9]} 16. bxc3 {[%clk 0:02:30]} 16...
Rxc3 {[%clk 0:02:52.8]} 17. Bxh7+ {[%clk 0:01:15.4]} 17... Nxh7 {[%clk
0:02:47.6]} 0-1

[Event "Early-Titled-Tuesday-Blitz-January-23-2024"]
[Site "Chess.com"]
[Date "2024.01.23"]
[Round "4"]
[White "Jesseinkman"]
[Black "enestnrvrd"]
[Result "0-1"]
[WhiteElo "2468"]
[BlackElo "2691"]
[TimeControl "180+1"]
[EndTime "8:34:05 PST"]
[Termination "enestnrvrd won by resignation"]

1. d4 {[%clk 0:03:00.9]} 1... Nf6 {[%clk 0:03:00.2]} 2. Nf3 {[%clk 0:03:00.4]}
2... e6 {[%clk 0:03:00.1]} 3. e3 {[%clk 0:02:59.5]} 3... b6 {[%clk 0:03:00.2]}
4. b3 {[%clk 0:02:59.4]} 4... Bb7 {[%clk 0:02:59.9]} 5. Bb2 {[%clk 0:02:59.9]}
5... d5 {[%clk 0:02:58.3]} 6. Nbd2 {[%clk 0:03:00.4]} 6... Bd6 {[%clk 0:02:59]}
7. Bd3 {[%clk 0:03:00.5]} 7... O-O {[%clk 0:02:59.3]} 8. O-O {[%clk 0:03:00.7]}
8... Ne4 {[%clk 0:03:00]} 9. c4 {[%clk 0:02:55.3]} 9... Nd7 {[%clk 0:02:59.7]}
10. Rc1 {[%clk 0:02:54.3]} 10... f5 {[%clk 0:02:59.3]} 11. Ne5 {[%clk
0:02:54.3]} 11... Bxe5 {[%clk 0:02:58.2]} 12. dxe5 {[%clk 0:02:54.8]} 12... Ndc5
{[%clk 0:02:55.3]} 13. Nxe4 {[%clk 0:02:44.4]} 13... dxe4 {[%clk 0:02:49.5]} 14.
Be2 {[%clk 0:02:42.1]} 14... Qg5 {[%clk 0:02:49.4]} 15. Bd4 {[%clk 0:02:23.8]}
15... Rad8 {[%clk 0:02:40.2]} 16. g3 {[%clk 0:02:23.2]} 16... Qh6 {[%clk
0:02:21.3]} 17. Qc2 {[%clk 0:02:17.3]} 17... f4 {[%clk 0:02:16.4]} 18. Bxc5
{[%clk 0:02:10.3]} 18... f3 {[%clk 0:02:14.2]} 19. Bxf3 {[%clk 0:02:03.9]} 19...
exf3 {[%clk 0:02:11.3]} 0-1

[Event "Early-Titled-Tuesday-Blitz-January-23-2024"]
[Site "Chess.com"]
[Date "2024.01.23"]
[Round "4"]
[White "Pliukha_Mikhail"]
[Black "secretsuperstar7"]
[Result "1-0"]
[WhiteElo "2748"]
[BlackElo "2509"]
[TimeControl "180+1"]
[EndTime "8:34:25 PST"]
[Termination "Pliukha_Mikhail won by resignation"]

1. e4 {[%clk 0:02:55]} 1... c5 {[%clk 0:02:59.6]} 2. d4 {[%clk 0:02:55.1]} 2...
cxd4 {[%clk 0:02:59.3]} 3. Qxd4 {[%clk 0:02:56]} 3... Nc6 {[%clk 0:02:59.2]} 4.
Qd3 {[%clk 0:02:56.9]} 4... Nf6 {[%clk 0:02:58.7]} 5. Nc3 {[%clk 0:02:57.3]}
5... d6 {[%clk 0:02:56.9]} 6. Nf3 {[%clk 0:02:57.6]} 6... e6 {[%clk 0:02:54.9]}
7. Be2 {[%clk 0:02:58.2]} 7... Be7 {[%clk 0:02:53.7]} 8. Bf4 {[%clk 0:02:58.8]}
8... e5 {[%clk 0:02:51.2]} 9. Bg5 {[%clk 0:02:58.8]} 9... Be6 {[%clk 0:02:48.6]}
10. O-O {[%clk 0:02:59.1]} 10... O-O {[%clk 0:02:48.4]} 11. Rad1 {[%clk
0:02:58.7]} 11... Nb4 {[%clk 0:02:37.2]} 12. Qd2 {[%clk 0:02:58.5]} 12... d5
{[%clk 0:02:05]} 13. Bxf6 {[%clk 0:02:55.9]} 13... Bxf6 {[%clk 0:02:00.1]} 14.
exd5 {[%clk 0:02:54.7]} 14... Bf5 {[%clk 0:01:57.8]} 15. a3 {[%clk 0:02:54.7]}
15... Na6 {[%clk 0:01:57.6]} 16. Bd3 {[%clk 0:02:51.1]} 16... Bxd3 {[%clk
0:01:50]} 17. Qxd3 {[%clk 0:02:52]} 17... Nc5 {[%clk 0:01:50.1]} 18. Qe3 {[%clk
0:02:48.2]} 18... Rc8 {[%clk 0:01:48]} 19. Ne4 {[%clk 0:02:44]} 19... Be7 {[%clk
0:01:42.6]} 20. d6 {[%clk 0:02:39.6]} 20... Nxe4 {[%clk 0:01:30.2]} 21. dxe7
{[%clk 0:02:37.9]} 21... Qxe7 {[%clk 0:01:30.3]} 22. Qxe4 {[%clk 0:02:38.4]}
22... f6 {[%clk 0:01:30.2]} 23. c3 {[%clk 0:02:36.1]} 23... Rc6 {[%clk
0:01:30.2]} 24. Rd2 {[%clk 0:02:35.4]} 24... Rfc8 {[%clk 0:01:27.8]} 25. Rfd1
{[%clk 0:02:35.2]} 25... h5 {[%clk 0:01:26.9]} 26. Rd7 {[%clk 0:02:34.7]} 26...
Qe6 {[%clk 0:01:27.3]} 27. Qg6 {[%clk 0:02:34.5]} 1-0

[Event "Early-Titled-Tuesday-Blitz-January-23-2024"]
[Site "Chess.com"]
[Date "2024.01.23"]
[Round "4"]
[White "gau_npukyputb"]
[Black "tomesao"]
[Result "1-0"]
[WhiteElo "2708"]
[BlackElo "2501"]
[TimeControl "180+1"]
[EndTime "8:34:35 PST"]
[Termination "gau_npukyputb won by resignation"]

1. g3 {[%clk 0:03:00.9]} 1... d5 {[%clk 0:02:58.9]} 2. Nf3 {[%clk 0:03:01.8]}
2... Bg4 {[%clk 0:02:58.5]} 3. Bg2 {[%clk 0:03:02]} 3... e6 {[%clk 0:02:58.8]}
4. O-O {[%clk 0:03:02.6]} 4... c6 {[%clk 0:02:59.1]} 5. d4 {[%clk 0:03:02.9]}
5... Nf6 {[%clk 0:02:59]} 6. c4 {[%clk 0:03:03.2]} 6... Be7 {[%clk 0:02:59.3]}
7. Nc3 {[%clk 0:03:03.8]} 7... O-O {[%clk 0:02:59]} 8. Qb3 {[%clk 0:03:04.2]}
8... Qb6 {[%clk 0:02:43.8]} 9. Nd2 {[%clk 0:03:02.4]} 9... dxc4 {[%clk
0:02:34.6]} 10. Nxc4 {[%clk 0:02:59.8]} 10... Qxb3 {[%clk 0:02:33.9]} 11. axb3
{[%clk 0:03:00.7]} 11... Nbd7 {[%clk 0:02:25.5]} 12. Na5 {[%clk 0:02:58.3]}
12... Rab8 {[%clk 0:02:19.3]} 13. Bf4 {[%clk 0:02:55.7]} 13... e5 {[%clk
0:02:13.6]} 14. dxe5 {[%clk 0:02:53.9]} 14... Nh5 {[%clk 0:02:13.8]} 15. Rfd1
{[%clk 0:02:45.7]} 15... Nc5 {[%clk 0:02:01.2]} 16. Be3 {[%clk 0:02:37.5]} 16...
Rfe8 {[%clk 0:01:11.9]} 17. h3 {[%clk 0:02:33.1]} 17... Be6 {[%clk 0:01:05.2]}
18. g4 {[%clk 0:02:31.2]} 1-0

[Event "Early-Titled-Tuesday-Blitz-January-23-2024"]
[Site "Chess.com"]
[Date "2024.01.23"]
[Round "4"]
[White "ATM622"]
[Black "AlexTruskavetsky"]
[Result "0-1"]
[WhiteElo "2502"]
[BlackElo "2693"]
[TimeControl "180+1"]
[EndTime "8:35:09 PST"]
[Termination "AlexTruskavetsky won by resignation"]

1. d4 {[%clk 0:02:30.3]} 1... Nf6 {[%clk 0:02:59.8]} 2. c4 {[%clk 0:02:29.3]}
2... e6 {[%clk 0:02:59.8]} 3. g3 {[%clk 0:02:29.4]} 3... d5 {[%clk 0:02:59.9]}
4. Bg2 {[%clk 0:02:29.6]} 4... dxc4 {[%clk 0:02:59.8]} 5. Nf3 {[%clk 0:02:29.6]}
5... Nc6 {[%clk 0:03:00.2]} 6. O-O {[%clk 0:02:29.6]} 6... a6 {[%clk 0:03:00.6]}
7. a4 {[%clk 0:02:29]} 7... Rb8 {[%clk 0:03:00.6]} 8. a5 {[%clk 0:02:29]} 8...
b5 {[%clk 0:02:58.6]} 9. axb6 {[%clk 0:02:29.9]} 9... cxb6 {[%clk 0:02:59]} 10.
Bf4 {[%clk 0:02:27]} 10... Bd6 {[%clk 0:02:57.4]} 11. Bxd6 {[%clk 0:02:23.6]}
11... Qxd6 {[%clk 0:02:58.3]} 12. Nc3 {[%clk 0:02:23.6]} 12... b5 {[%clk
0:02:57.6]} 13. e4 {[%clk 0:02:23.3]} 13... Nd7 {[%clk 0:02:47]} 14. e5 {[%clk
0:02:22.4]} 14... Qc7 {[%clk 0:02:47.5]} 15. Ne4 {[%clk 0:02:21.7]} 15... O-O
{[%clk 0:02:47.1]} 16. Nfg5 {[%clk 0:02:18]} 16... h6 {[%clk 0:02:45.5]} 17. Qh5
{[%clk 0:02:16.6]} 17... Nxd4 {[%clk 0:02:33.7]} 18. f4 {[%clk 0:02:15.1]} 18...
Nf5 {[%clk 0:02:21.8]} 19. Nf3 {[%clk 0:01:36.3]} 19... Bb7 {[%clk 0:02:16.4]}
20. Rfe1 {[%clk 0:01:19.3]} 20... Nc5 {[%clk 0:02:12.4]} 21. Nd6 {[%clk
0:01:15.1]} 21... Nxd6 {[%clk 0:02:09.5]} 22. exd6 {[%clk 0:01:15]} 22... Qxd6
{[%clk 0:02:10.4]} 23. Ne5 {[%clk 0:01:10.6]} 23... Bxg2 {[%clk 0:02:09.4]} 24.
Kxg2 {[%clk 0:01:10.5]} 24... Qd5+ {[%clk 0:02:07.5]} 25. Kh3 {[%clk 0:01:08.4]}
25... f6 {[%clk 0:02:05.3]} 26. Ng6 {[%clk 0:01:08.3]} 26... Qxh5+ {[%clk
0:02:05.1]} 0-1

[Event "Early-Titled-Tuesday-Blitz-January-23-2024"]
[Site "Chess.com"]
[Date "2024.01.23"]
[Round "4"]
[White "eagleclaw07"]
[Black "RCone"]
[Result "1-0"]
[WhiteElo "2632"]
[BlackElo "2427"]
[TimeControl "180+1"]
[EndTime "8:35:20 PST"]
[Termination "eagleclaw07 won by checkmate"]

1. d4 {[%clk 0:03:00.9]} 1... g6 {[%clk 0:02:56.5]} 2. e4 {[%clk 0:02:58]} 2...
d6 {[%clk 0:02:55.7]} 3. Nf3 {[%clk 0:02:57.6]} 3... Nf6 {[%clk 0:02:56.2]} 4.
Nc3 {[%clk 0:02:57.2]} 4... Bg7 {[%clk 0:02:56.8]} 5. Bc4 {[%clk 0:02:56.2]}
5... O-O {[%clk 0:02:57.4]} 6. h3 {[%clk 0:02:55.8]} 6... c6 {[%clk 0:02:57.6]}
7. a3 {[%clk 0:02:51.9]} 7... a5 {[%clk 0:02:56.1]} 8. O-O {[%clk 0:02:51.2]}
8... b5 {[%clk 0:02:55.9]} 9. Bb3 {[%clk 0:02:50.9]} 9... Ba6 {[%clk 0:02:55]}
10. Re1 {[%clk 0:02:50.5]} 10... b4 {[%clk 0:02:51.2]} 11. axb4 {[%clk
0:02:49.7]} 11... axb4 {[%clk 0:02:51.4]} 12. Na2 {[%clk 0:02:48.6]} 12... Qb6
{[%clk 0:02:50]} 13. Bd2 {[%clk 0:02:37.2]} 13... c5 {[%clk 0:02:50]} 14. e5
{[%clk 0:02:34.3]} 14... Nfd7 {[%clk 0:02:48.8]} 15. e6 {[%clk 0:02:29.4]} 15...
fxe6 {[%clk 0:02:49.7]} 16. Rxe6 {[%clk 0:02:26.7]} 16... c4 {[%clk 0:02:48.3]}
17. Ba4 {[%clk 0:02:25.3]} 17... Bxd4 {[%clk 0:01:57.1]} 18. Nxb4 {[%clk
0:02:11.4]} 18... Bxf2+ {[%clk 0:01:53.8]} 19. Kh1 {[%clk 0:02:10.2]} 19... Nc5
{[%clk 0:01:52.8]} 20. Rxe7 {[%clk 0:01:59.3]} 20... Nxa4 {[%clk 0:01:52.6]} 21.
Rxa4 {[%clk 0:01:50.6]} 21... Bb7 {[%clk 0:01:44.7]} 22. Bc3 {[%clk 0:01:44.6]}
22... Bxf3 {[%clk 0:01:31.4]} 23. Rg7+ {[%clk 0:01:41.5]} 23... Kh8 {[%clk
0:01:29.9]} 24. Rxg6+ {[%clk 0:01:40]} 24... Rf6 {[%clk 0:01:19.3]} 25. Bxf6#
{[%clk 0:01:39.3]} 1-0

[Event "Early-Titled-Tuesday-Blitz-January-23-2024"]
[Site "Chess.com"]
[Date "2024.01.23"]
[Round "4"]
[White "sergoy"]
[Black "bubeliang"]
[Result "1-0"]
[WhiteElo "3018"]
[BlackElo "2791"]
[TimeControl "180+1"]
[EndTime "8:35:23 PST"]
[Termination "sergoy won by checkmate"]

1. d4 {[%clk 0:03:00.9]} 1... b6 {[%clk 0:02:57.7]} 2. c4 {[%clk 0:02:58.3]}
2... Bb7 {[%clk 0:02:58.6]} 3. f3 {[%clk 0:02:58.9]} 3... f5 {[%clk 0:02:56.7]}
4. Bg5 {[%clk 0:02:54.9]} 4... g6 {[%clk 0:02:54.8]} 5. Nc3 {[%clk 0:02:53.4]}
5... Bg7 {[%clk 0:02:54.5]} 6. e4 {[%clk 0:02:53.8]} 6... fxe4 {[%clk
0:02:50.4]} 7. fxe4 {[%clk 0:02:53.6]} 7... c5 {[%clk 0:02:49.2]} 8. d5 {[%clk
0:02:52.5]} 8... d6 {[%clk 0:02:46.9]} 9. Nf3 {[%clk 0:02:48.1]} 9... Nf6 {[%clk
0:02:45.3]} 10. Qd2 {[%clk 0:02:45.7]} 10... Nbd7 {[%clk 0:02:43.1]} 11. Bh6
{[%clk 0:02:38.4]} 11... O-O {[%clk 0:02:41.4]} 12. Bxg7 {[%clk 0:02:38.3]}
12... Kxg7 {[%clk 0:02:42.3]} 13. O-O-O {[%clk 0:02:31.4]} 13... Ne5 {[%clk
0:02:27.9]} 14. Be2 {[%clk 0:02:31.4]} 14... Bc8 {[%clk 0:02:24.7]} 15. Rdf1
{[%clk 0:02:29.8]} 15... Nxf3 {[%clk 0:02:06.8]} 16. gxf3 {[%clk 0:02:26.8]}
16... e5 {[%clk 0:02:03.7]} 17. dxe6 {[%clk 0:02:18.8]} 17... Bxe6 {[%clk
0:02:02.3]} 18. f4 {[%clk 0:02:19.5]} 18... Qe7 {[%clk 0:02:01]} 19. h4 {[%clk
0:02:17.1]} 19... Bc8 {[%clk 0:01:18.6]} 20. h5 {[%clk 0:02:15.3]} 20... Bb7
{[%clk 0:01:14.4]} 21. hxg6 {[%clk 0:02:14.2]} 21... hxg6 {[%clk 0:01:15.3]} 22.
f5 {[%clk 0:02:14.5]} 22... Rh8 {[%clk 0:01:10.7]} 23. Rhg1 {[%clk 0:02:14.8]}
23... Rh6 {[%clk 0:01:06.3]} 24. Qxh6+ {[%clk 0:01:59.2]} 24... Kxh6 {[%clk
0:01:07.2]} 25. Rxg6+ {[%clk 0:01:59.8]} 25... Kh7 {[%clk 0:01:07.1]} 26. Rh1+
{[%clk 0:02:00.5]} 26... Nh5 {[%clk 0:01:03.7]} 27. Rxh5# {[%clk 0:02:00.7]} 1-0

[Event "Early-Titled-Tuesday-Blitz-January-23-2024"]
[Site "Chess.com"]
[Date "2024.01.23"]
[Round "4"]
[White "Alexei_Kornev"]
[Black "sergeikim"]
[Result "1-0"]
[WhiteElo "2720"]
[BlackElo "2524"]
[TimeControl "180+1"]
[EndTime "8:35:32 PST"]
[Termination "Alexei_Kornev won by resignation"]

1. e4 {[%clk 0:03:00.9]} 1... e5 {[%clk 0:03:00]} 2. Nf3 {[%clk 0:03:00]} 2...
Nc6 {[%clk 0:03:00.2]} 3. Bb5 {[%clk 0:03:00.5]} 3... a6 {[%clk 0:03:00.5]} 4.
Ba4 {[%clk 0:03:00.3]} 4... Nf6 {[%clk 0:03:00.6]} 5. O-O {[%clk 0:02:59.7]}
5... b5 {[%clk 0:03:00.7]} 6. Bb3 {[%clk 0:02:59.4]} 6... Bc5 {[%clk 0:03:00.7]}
7. a4 {[%clk 0:02:58.5]} 7... Bb7 {[%clk 0:02:57.7]} 8. d3 {[%clk 0:02:57.6]}
8... d6 {[%clk 0:02:57.8]} 9. h3 {[%clk 0:02:54.8]} 9... h6 {[%clk 0:02:57.8]}
10. Nc3 {[%clk 0:02:52.5]} 10... bxa4 {[%clk 0:02:51.7]} 11. Bxa4 {[%clk
0:02:51.2]} 11... O-O {[%clk 0:02:50.7]} 12. Ne2 {[%clk 0:02:50.8]} 12... Bb6
{[%clk 0:02:45.2]} 13. Ng3 {[%clk 0:02:49.9]} 13... Ne7 {[%clk 0:02:45]} 14. Re1
{[%clk 0:02:47.5]} 14... Ng6 {[%clk 0:02:44.5]} 15. c3 {[%clk 0:02:46.7]} 15...
Rb8 {[%clk 0:02:38.8]} 16. d4 {[%clk 0:02:46.4]} 16... Bc8 {[%clk 0:02:27]} 17.
Be3 {[%clk 0:02:42]} 17... exd4 {[%clk 0:02:18.6]} 18. cxd4 {[%clk 0:02:37.9]}
18... Bd7 {[%clk 0:02:15]} 19. Bc2 {[%clk 0:02:35]} 19... a5 {[%clk 0:02:12.4]}
20. Qd2 {[%clk 0:02:33.9]} 20... Nh7 {[%clk 0:01:56]} 21. e5 {[%clk 0:02:24]}
21... dxe5 {[%clk 0:01:48.9]} 22. dxe5 {[%clk 0:02:24.9]} 22... Bxe3 {[%clk
0:01:39.5]} 23. Qxe3 {[%clk 0:02:11.6]} 23... Be6 {[%clk 0:01:32.1]} 24. Qc3
{[%clk 0:02:00.1]} 24... Ng5 {[%clk 0:01:19.7]} 25. Nd4 {[%clk 0:01:55.9]} 25...
Nf4 {[%clk 0:01:01.3]} 26. Nc6 {[%clk 0:01:54.4]} 26... Qd5 {[%clk 0:01:01.2]}
27. Ne7+ {[%clk 0:01:52.6]} 1-0

[Event "Early-Titled-Tuesday-Blitz-January-23-2024"]
[Site "Chess.com"]
[Date "2024.01.23"]
[Round "4"]
[White "leopato"]
[Black "AradNazari"]
[Result "1-0"]
[WhiteElo "2260"]
[BlackElo "2609"]
[TimeControl "180+1"]
[EndTime "8:35:51 PST"]
[Termination "leopato won by checkmate"]

1. e4 {[%clk 0:03:00]} 1... g5 {[%clk 0:02:43.5]} 2. d4 {[%clk 0:02:59.2]} 2...
e6 {[%clk 0:02:41.9]} 3. Nc3 {[%clk 0:02:58.3]} 3... b6 {[%clk 0:02:40.7]} 4.
Bd3 {[%clk 0:02:56.1]} 4... Bg7 {[%clk 0:02:40.4]} 5. Nge2 {[%clk 0:02:55.5]}
5... Bb7 {[%clk 0:02:40.4]} 6. Be3 {[%clk 0:02:54.9]} 6... h6 {[%clk 0:02:38.4]}
7. Qd2 {[%clk 0:02:52.7]} 7... Nf6 {[%clk 0:02:38.7]} 8. f3 {[%clk 0:02:51.2]}
8... d5 {[%clk 0:02:38.2]} 9. e5 {[%clk 0:02:48.9]} 9... Nfd7 {[%clk 0:02:37.9]}
10. O-O-O {[%clk 0:02:44.1]} 10... a6 {[%clk 0:02:36.4]} 11. h4 {[%clk
0:02:40.8]} 11... gxh4 {[%clk 0:02:36.3]} 12. f4 {[%clk 0:02:38.6]} 12... c5
{[%clk 0:02:35.8]} 13. f5 {[%clk 0:02:29.2]} 13... Qc7 {[%clk 0:02:17]} 14. fxe6
{[%clk 0:02:24.3]} 14... fxe6 {[%clk 0:02:17.7]} 15. Bg6+ {[%clk 0:02:23]} 15...
Kd8 {[%clk 0:02:17.7]} 16. Nf4 {[%clk 0:02:21.3]} 16... Nf8 {[%clk 0:02:13.4]}
17. dxc5 {[%clk 0:02:12.9]} 17... bxc5 {[%clk 0:02:01.4]} 18. Ncxd5 {[%clk
0:01:59.3]} 18... exd5 {[%clk 0:01:55]} 19. Nxd5 {[%clk 0:01:58.8]} 19... Qxe5
{[%clk 0:01:50.8]} 20. Qa5+ {[%clk 0:01:50.5]} 20... Kd7 {[%clk 0:01:34.6]} 21.
Nb6+ {[%clk 0:01:25.9]} 21... Kc6 {[%clk 0:01:34.3]} 22. Be4+ {[%clk 0:01:17.5]}
22... Qxe4 {[%clk 0:01:13.3]} 23. Qxc5# {[%clk 0:01:17.5]} 1-0

[Event "Early-Titled-Tuesday-Blitz-January-23-2024"]
[Site "Chess.com"]
[Date "2024.01.23"]
[Round "4"]
[White "NovoselovRoman"]
[Black "tolia123"]
[Result "1-0"]
[WhiteElo "2541"]
[BlackElo "2102"]
[TimeControl "180+1"]
[EndTime "8:36:05 PST"]
[Termination "NovoselovRoman won by checkmate"]

1. e4 {[%clk 0:02:56.3]} 1... c5 {[%clk 0:02:59.8]} 2. Nc3 {[%clk 0:02:56.2]}
2... g6 {[%clk 0:02:59.3]} 3. d3 {[%clk 0:02:56.5]} 3... Bg7 {[%clk 0:02:58.8]}
4. Be3 {[%clk 0:02:57]} 4... d6 {[%clk 0:02:57]} 5. Nge2 {[%clk 0:02:54.3]} 5...
e6 {[%clk 0:02:57.2]} 6. Qd2 {[%clk 0:02:54.3]} 6... Nc6 {[%clk 0:02:54.8]} 7.
g3 {[%clk 0:02:49.6]} 7... Nd4 {[%clk 0:02:54.3]} 8. Bg2 {[%clk 0:02:49.9]} 8...
Ne7 {[%clk 0:02:50.9]} 9. O-O-O {[%clk 0:02:47.1]} 9... O-O {[%clk 0:02:49.1]}
10. Bh6 {[%clk 0:02:47.3]} 10... Qa5 {[%clk 0:02:41.8]} 11. Bxg7 {[%clk
0:02:42]} 11... Kxg7 {[%clk 0:02:42.7]} 12. h4 {[%clk 0:02:37.1]} 12... h5
{[%clk 0:02:27]} 13. g4 {[%clk 0:02:36.7]} 13... Rh8 {[%clk 0:02:24.1]} 14. gxh5
{[%clk 0:02:35]} 14... Rxh5 {[%clk 0:02:23.4]} 15. Ng3 {[%clk 0:02:35.3]} 15...
Rh8 {[%clk 0:02:17.5]} 16. h5 {[%clk 0:02:35.7]} 16... Bd7 {[%clk 0:02:06.7]}
17. hxg6 {[%clk 0:02:15.6]} 17... Nxg6 {[%clk 0:02:06.8]} 18. Qg5 {[%clk
0:02:11]} 18... b5 {[%clk 0:01:52.8]} 19. Nh5+ {[%clk 0:02:04.3]} 19... Kf8
{[%clk 0:01:46.7]} 20. Nf4 {[%clk 0:01:53.2]} 20... Rg8 {[%clk 0:01:30.5]} 21.
Rh7 {[%clk 0:01:17]} 21... Nxf4 {[%clk 0:01:05.7]} 22. Qxf4 {[%clk 0:01:10]}
22... Be8 {[%clk 0:01:01.5]} 23. Qxd6# {[%clk 0:01:08.9]} 1-0

[Event "Early-Titled-Tuesday-Blitz-January-23-2024"]
[Site "Chess.com"]
[Date "2024.01.23"]
[Round "4"]
[White "PenguinPacks"]
[Black "Yeritsyaan"]
[Result "0-1"]
[WhiteElo "2420"]
[BlackElo "2650"]
[TimeControl "180+1"]
[EndTime "8:36:10 PST"]
[Termination "Yeritsyaan won by checkmate"]

1. d4 {[%clk 0:02:15.4]} 1... Nf6 {[%clk 0:02:57.3]} 2. Bf4 {[%clk 0:02:15.6]}
2... g6 {[%clk 0:02:54]} 3. Nc3 {[%clk 0:02:16.1]} 3... d5 {[%clk 0:02:51.8]} 4.
Qd2 {[%clk 0:02:13.6]} 4... Bg7 {[%clk 0:02:49.1]} 5. Bh6 {[%clk 0:02:13.3]}
5... Bxh6 {[%clk 0:02:46.9]} 6. Qxh6 {[%clk 0:02:14.2]} 6... c5 {[%clk
0:02:46.3]} 7. dxc5 {[%clk 0:02:10.9]} 7... Qa5 {[%clk 0:02:45]} 8. O-O-O {[%clk
0:02:08.9]} 8... Nc6 {[%clk 0:02:42]} 9. Nf3 {[%clk 0:02:03.7]} 9... Qxc5 {[%clk
0:02:35.2]} 10. e3 {[%clk 0:02:01.2]} 10... Bg4 {[%clk 0:02:29.9]} 11. Bb5
{[%clk 0:01:50.7]} 11... Rc8 {[%clk 0:02:23.6]} 12. Qg5 {[%clk 0:01:30.1]} 12...
Bf5 {[%clk 0:02:16.1]} 13. Nd4 {[%clk 0:01:25.9]} 13... Ne4 {[%clk 0:01:53.1]}
14. Nxe4 {[%clk 0:01:14.4]} 14... Bxe4 {[%clk 0:01:54]} 15. f3 {[%clk
0:00:15.8]} 15... Bxc2 {[%clk 0:01:50.8]} 16. Bxc6+ {[%clk 0:00:15.8]} 16...
Rxc6 {[%clk 0:01:47.8]} 17. b4 {[%clk 0:00:14]} 17... Qc3 {[%clk 0:01:41.4]} 18.
Nxc6 {[%clk 0:00:13.1]} 18... Bd3# {[%clk 0:01:39.6]} 0-1